[Event "*** Titled Tuesday Blitz"]
[Site "Chess.com"]
[Date "2020.05.05"]
[Round "8"]
[White "zala02"]
[Black "mortngabriel"]
[Result "0-1"]
[WhiteElo "2259"]
[BlackElo "2447"]
[TimeControl "180+1"]
[EndTime "11:35:30 PDT"]
[Termination "mortngabriel won by resignation"]

1. d4 {[%clk 0:03:00.9]} 1... Nf6 {[%clk 0:02:59.7]} 2. c4 {[%clk 0:02:59.4]}
2... e6 {[%clk 0:03:00]} 3. Nc3 {[%clk 0:02:55.5]} 3... Bb4 {[%clk 0:02:59.5]}
4. Nf3 {[%clk 0:02:54.5]} 4... O-O {[%clk 0:02:58.6]} 5. Bg5 {[%clk 0:02:53.7]}
5... c5 {[%clk 0:02:55.6]} 6. e3 {[%clk 0:02:52.3]} 6... Qa5 {[%clk 0:02:48.8]}
7. Bxf6 {[%clk 0:02:10.5]} 7... Bxc3+ {[%clk 0:02:44.7]} 8. bxc3 {[%clk
0:02:09.7]} 8... Qxc3+ {[%clk 0:02:45.6]} 9. Nd2 {[%clk 0:02:07.9]} 9... gxf6
{[%clk 0:02:45.4]} 10. Rb1 {[%clk 0:01:59.7]} 10... Nc6 {[%clk 0:02:32.3]} 11.
Rb3 {[%clk 0:01:43.6]} 11... Qa5 {[%clk 0:02:29.6]} 12. Bd3 {[%clk 0:01:34.3]}
12... f5 {[%clk 0:02:16.2]} 13. g4 {[%clk 0:01:24]} 13... f4 {[%clk 0:01:37.3]}
14. g5 {[%clk 0:01:04.7]} 14... cxd4 {[%clk 0:01:21.1]} 15. exd4 {[%clk
0:01:02.2]} 15... Nxd4 {[%clk 0:01:16.3]} 16. Bxh7+ {[%clk 0:00:45.8]} 16... Kg7
{[%clk 0:00:39.2]} 17. Qh5 {[%clk 0:00:35]} 17... Nf5 {[%clk 0:00:38.4]} 18.
Bxf5 {[%clk 0:00:29]} 18... Rh8 {[%clk 0:00:38.1]} 19. Qf3 {[%clk 0:00:20.5]}
19... Qxf5 {[%clk 0:00:37.6]} 20. Ne4 {[%clk 0:00:17.8]} 20... d5 {[%clk
0:00:34.1]} 21. cxd5 {[%clk 0:00:16.5]} 21... exd5 {[%clk 0:00:33.7]} 22. Qc3+
{[%clk 0:00:16.1]} 22... Kg8 {[%clk 0:00:16.6]} 23. Nf6+ {[%clk 0:00:15.6]}
23... Kf8 {[%clk 0:00:17.1]} 24. Rg1 {[%clk 0:00:09.6]} 24... Be6 {[%clk
0:00:16.3]} 25. g6 {[%clk 0:00:09.7]} 25... Rg8 {[%clk 0:00:10.4]} 26. Qc5+
{[%clk 0:00:07.6]} 26... Kg7 {[%clk 0:00:10]} 27. gxf7+ {[%clk 0:00:01.6]} 27...
Kxf6 {[%clk 0:00:09.6]} 28. fxg8=Q {[%clk 0:00:02.2]} 28... Qe4+ {[%clk
0:00:06.7]} 29. Kf1 {[%clk 0:00:02]} 29... Bxg8 {[%clk 0:00:07.1]} 30. Qc3+
{[%clk 0:00:02.3]} 30... d4 {[%clk 0:00:06.7]} 31. Qc4 {[%clk 0:00:02.5]} 31...
Bxc4+ {[%clk 0:00:06]} 0-1

[Event "*** Titled Tuesday Blitz"]
[Site "Chess.com"]
[Date "2020.05.05"]
[Round "8"]
[White "MilanovicDan"]
[Black "tigra"]
[Result "0-1"]
[WhiteElo "2520"]
[BlackElo "2806"]
[TimeControl "180+1"]
[EndTime "11:35:31 PDT"]
[Termination "tigra won on time"]

1. d4 {[%clk 0:03:00.9]} 1... Nf6 {[%clk 0:02:59]} 2. c4 {[%clk 0:03:00.6]} 2...
g6 {[%clk 0:02:59.9]} 3. Nc3 {[%clk 0:03:00.4]} 3... d5 {[%clk 0:03:00.8]} 4.
Bf4 {[%clk 0:02:59.1]} 4... Bg7 {[%clk 0:03:00.5]} 5. e3 {[%clk 0:02:59.2]} 5...
c5 {[%clk 0:03:01]} 6. dxc5 {[%clk 0:02:58.1]} 6... Qa5 {[%clk 0:03:01.2]} 7.
Rc1 {[%clk 0:02:57.5]} 7... O-O {[%clk 0:02:54.7]} 8. cxd5 {[%clk 0:02:56.4]}
8... Ne4 {[%clk 0:02:53.6]} 9. Ne2 {[%clk 0:02:50.9]} 9... Nxc5 {[%clk
0:02:37.7]} 10. a3 {[%clk 0:02:37.7]} 10... e5 {[%clk 0:02:01.9]} 11. Bg3 {[%clk
0:02:28.8]} 11... Nba6 {[%clk 0:01:29]} 12. b4 {[%clk 0:02:14.3]} 12... Qxa3
{[%clk 0:01:28.8]} 13. bxc5 {[%clk 0:02:14.1]} 13... Nxc5 {[%clk 0:01:29.5]} 14.
f3 {[%clk 0:02:10.6]} 14... Bd7 {[%clk 0:01:23.7]} 15. Kf2 {[%clk 0:02:01.8]}
15... Rac8 {[%clk 0:01:20.9]} 16. d6 {[%clk 0:01:27.6]} 16... Bf5 {[%clk
0:00:40]} 17. Ra1 {[%clk 0:01:20.8]} 17... Qb2 {[%clk 0:00:39.9]} 18. Ra2 {[%clk
0:01:15.4]} 18... Qb6 {[%clk 0:00:39.8]} 19. Kg1 {[%clk 0:01:05.2]} 19... Nd3
{[%clk 0:00:34.6]} 20. Bf2 {[%clk 0:00:53.4]} 20... Rfd8 {[%clk 0:00:24.8]} 21.
g4 {[%clk 0:00:32.6]} 21... Rxd6 {[%clk 0:00:20.2]} 22. Rd2 {[%clk 0:00:28.1]}
22... Rcd8 {[%clk 0:00:16.1]} 23. Qa1 {[%clk 0:00:06.9]} 23... Nxf2 {[%clk
0:00:08.7]} 24. Rxd6 {[%clk 0:00:06.5]} 24... Rxd6 {[%clk 0:00:06]} 25. Kxf2
{[%clk 0:00:06.5]} 25... Rd3 {[%clk 0:00:06.6]} 26. Qc1 {[%clk 0:00:02.9]} 26...
Bh6 {[%clk 0:00:05.9]} 27. Nd1 {[%clk 0:00:02.9]} 27... Rxd1 {[%clk 0:00:03.3]}
28. Qxd1 {[%clk 0:00:02.5]} 28... Qxe3+ {[%clk 0:00:04.2]} 29. Kg2 {[%clk
0:00:02.5]} 29... e4 {[%clk 0:00:03.7]} 0-1

[Event "*** Titled Tuesday Blitz"]
[Site "Chess.com"]
[Date "2020.05.05"]
[Round "8"]
[White "Safar_From_Afar"]
[Black "Shivagami"]
[Result "0-1"]
[WhiteElo "2273"]
[BlackElo "2162"]
[TimeControl "180+1"]
[EndTime "11:35:33 PDT"]
[Termination "Shivagami won by checkmate"]

1. e4 {[%clk 0:03:00.9]} 1... c5 {[%clk 0:02:59.6]} 2. Nc3 {[%clk 0:02:58.5]}
2... e6 {[%clk 0:02:57.6]} 3. Nf3 {[%clk 0:02:53]} 3... d5 {[%clk 0:02:56.4]} 4.
exd5 {[%clk 0:02:47.9]} 4... exd5 {[%clk 0:02:54.2]} 5. Bb5+ {[%clk 0:02:48.3]}
5... Bd7 {[%clk 0:02:48.6]} 6. Bxd7+ {[%clk 0:02:47]} 6... Qxd7 {[%clk
0:02:48.3]} 7. O-O {[%clk 0:02:46.1]} 7... Be7 {[%clk 0:02:45.6]} 8. d4 {[%clk
0:02:43.9]} 8... c4 {[%clk 0:02:45.4]} 9. Ne5 {[%clk 0:02:36.9]} 9... Qd8 {[%clk
0:02:32.1]} 10. Qh5 {[%clk 0:02:10]} 10... g6 {[%clk 0:02:23.3]} 11. Qf3 {[%clk
0:01:41.6]} 11... Nf6 {[%clk 0:02:09.4]} 12. Bg5 {[%clk 0:01:41.3]} 12... O-O
{[%clk 0:01:40.2]} 13. Bxf6 {[%clk 0:01:40.1]} 13... Bxf6 {[%clk 0:01:40.3]} 14.
Nxd5 {[%clk 0:01:40.4]} 14... Bg7 {[%clk 0:01:37.7]} 15. c3 {[%clk 0:01:29.9]}
15... Bxe5 {[%clk 0:01:15.2]} 16. dxe5 {[%clk 0:01:28.6]} 16... Nc6 {[%clk
0:01:12.6]} 17. Rfe1 {[%clk 0:01:12.8]} 17... Qg5 {[%clk 0:01:04.6]} 18. Qg3
{[%clk 0:00:55.8]} 18... Qf5 {[%clk 0:00:39.6]} 19. Rad1 {[%clk 0:00:51.7]}
19... Rad8 {[%clk 0:00:36.2]} 20. Qh4 {[%clk 0:00:35.8]} 20... h5 {[%clk
0:00:20.3]} 21. Nf6+ {[%clk 0:00:18.8]} 21... Kg7 {[%clk 0:00:18.6]} 22. g4
{[%clk 0:00:15.1]} 22... Qf4 {[%clk 0:00:14.5]} 23. Rxd8 {[%clk 0:00:10.1]}
23... Rxd8 {[%clk 0:00:13.8]} 24. Re4 {[%clk 0:00:09.6]} 24... Qc1+ {[%clk
0:00:12.5]} 25. Kg2 {[%clk 0:00:10]} 25... Rd1 {[%clk 0:00:12.2]} 26. gxh5
{[%clk 0:00:05.7]} 26... Rg1+ {[%clk 0:00:11.9]} 27. Kf3 {[%clk 0:00:03.6]}
27... Qd1+ {[%clk 0:00:12.3]} 28. Re2 {[%clk 0:00:02.9]} 28... Qd3+ {[%clk
0:00:11.7]} 29. Re3 {[%clk 0:00:03.2]} 29... Nxe5+ {[%clk 0:00:11.9]} 30. Kf4
{[%clk 0:00:01.6]} 30... Qf5# {[%clk 0:00:12.1]} 0-1

[Event "*** Titled Tuesday Blitz"]
[Site "Chess.com"]
[Date "2020.05.05"]
[Round "8"]
[White "RubensCezila"]
[Black "ElGasanov"]
[Result "0-1"]
[WhiteElo "2480"]
[BlackElo "2714"]
[TimeControl "180+1"]
[EndTime "11:35:35 PDT"]
[Termination "ElGasanov won on time"]

1. e4 {[%clk 0:03:00.9]} 1... e5 {[%clk 0:02:59.3]} 2. Nf3 {[%clk 0:03:01]} 2...
Nc6 {[%clk 0:02:59.8]} 3. Bb5 {[%clk 0:03:00.8]} 3... g6 {[%clk 0:02:59.8]} 4.
O-O {[%clk 0:02:59.9]} 4... Bg7 {[%clk 0:02:59]} 5. Re1 {[%clk 0:02:58.7]} 5...
Nge7 {[%clk 0:02:53.5]} 6. c3 {[%clk 0:02:58]} 6... a6 {[%clk 0:02:53.2]} 7. Ba4
{[%clk 0:02:57.6]} 7... O-O {[%clk 0:02:52.8]} 8. d4 {[%clk 0:02:52.8]} 8... d6
{[%clk 0:02:44.7]} 9. h3 {[%clk 0:02:50.6]} 9... b5 {[%clk 0:02:39.2]} 10. Bb3
{[%clk 0:02:49.3]} 10... Na5 {[%clk 0:02:35.9]} 11. Bc2 {[%clk 0:02:48.9]} 11...
c5 {[%clk 0:02:35.2]} 12. a4 {[%clk 0:02:48.1]} 12... c4 {[%clk 0:02:22.8]} 13.
Bg5 {[%clk 0:02:43.8]} 13... h6 {[%clk 0:02:14.7]} 14. Be3 {[%clk 0:02:43]}
14... Qc7 {[%clk 0:02:08.9]} 15. Qc1 {[%clk 0:02:29.9]} 15... Kh7 {[%clk
0:02:07.5]} 16. Nbd2 {[%clk 0:02:28.9]} 16... Bd7 {[%clk 0:02:03]} 17. Nf1
{[%clk 0:02:17.9]} 17... Rfb8 {[%clk 0:01:55.7]} 18. Ng3 {[%clk 0:02:13.1]}
18... b4 {[%clk 0:01:52]} 19. cxb4 {[%clk 0:02:02.3]} 19... Nac6 {[%clk
0:01:52.3]} 20. dxe5 {[%clk 0:01:56.4]} 20... dxe5 {[%clk 0:01:38.9]} 21. Bc5
{[%clk 0:01:55]} 21... Be6 {[%clk 0:01:37.2]} 22. Rd1 {[%clk 0:01:46.2]} 22...
Rb7 {[%clk 0:01:21.9]} 23. Nf5 {[%clk 0:01:23]} 23... gxf5 {[%clk 0:01:13.2]}
24. exf5 {[%clk 0:01:22.8]} 24... Nxf5 {[%clk 0:01:04.7]} 25. Nh4 {[%clk
0:01:11.8]} 25... Nxb4 {[%clk 0:00:57.7]} 26. Bxb4 {[%clk 0:01:01.8]} 26... Rxb4
{[%clk 0:00:57]} 27. Nxf5 {[%clk 0:00:32.2]} 27... Bxf5 {[%clk 0:00:53.5]} 28.
Bxf5+ {[%clk 0:00:33.1]} 28... Kh8 {[%clk 0:00:54.1]} 29. Rd7 {[%clk 0:00:31.8]}
29... Qb6 {[%clk 0:00:52.1]} 30. Rxf7 {[%clk 0:00:28.1]} 30... Rxb2 {[%clk
0:00:52.2]} 31. Be4 {[%clk 0:00:20.9]} 31... Rf8 {[%clk 0:00:52.6]} 32. Rb1
{[%clk 0:00:16.5]} 32... c3 {[%clk 0:00:48.4]} 33. Rxf8+ {[%clk 0:00:13.9]}
33... Bxf8 {[%clk 0:00:47.2]} 34. Rxb2 {[%clk 0:00:09.6]} 34... cxb2 {[%clk
0:00:47.7]} 35. Qd1 {[%clk 0:00:09.6]} 35... Qf6 {[%clk 0:00:42.3]} 36. Bb1
{[%clk 0:00:08.8]} 36... e4 {[%clk 0:00:38.9]} 37. Bxe4 {[%clk 0:00:06]} 37...
Bc5 {[%clk 0:00:36.4]} 38. Qe1 {[%clk 0:00:01.5]} 38... Qe5 {[%clk 0:00:35.2]}
39. Kh1 {[%clk 0:00:01.3]} 39... Qf4 {[%clk 0:00:27.2]} 0-1

[Event "*** Titled Tuesday Blitz"]
[Site "Chess.com"]
[Date "2020.05.05"]
[Round "8"]
[White "norwaytoadog"]
[Black "RAU4ever"]
[Result "1-0"]
[WhiteElo "2190"]
[BlackElo "2326"]
[TimeControl "180+1"]
[EndTime "11:35:35 PDT"]
[Termination "norwaytoadog won on time"]

1. e4 {[%clk 0:03:00.3]} 1... c5 {[%clk 0:02:59.3]} 2. Nf3 {[%clk 0:03:00]} 2...
d6 {[%clk 0:02:59.6]} 3. Bb5+ {[%clk 0:02:59.5]} 3... Nd7 {[%clk 0:02:58.1]} 4.
d4 {[%clk 0:02:59.5]} 4... cxd4 {[%clk 0:02:57.9]} 5. Qxd4 {[%clk 0:02:59.8]}
5... a6 {[%clk 0:02:56.2]} 6. Bxd7+ {[%clk 0:03:00]} 6... Bxd7 {[%clk
0:02:56.2]} 7. c4 {[%clk 0:03:00.4]} 7... Nf6 {[%clk 0:02:54.7]} 8. Bg5 {[%clk
0:03:00.4]} 8... Qa5+ {[%clk 0:02:51.7]} 9. Nc3 {[%clk 0:02:55.7]} 9... e5
{[%clk 0:02:28.8]} 10. Qd3 {[%clk 0:02:48.4]} 10... Bc6 {[%clk 0:01:43.9]} 11.
Bxf6 {[%clk 0:02:30.5]} 11... gxf6 {[%clk 0:01:44.8]} 12. O-O {[%clk 0:02:30.7]}
12... f5 {[%clk 0:01:29.7]} 13. exf5 {[%clk 0:02:18.4]} 13... O-O-O {[%clk
0:01:29.5]} 14. Nd5 {[%clk 0:02:04.9]} 14... Bxd5 {[%clk 0:01:17.1]} 15. cxd5
{[%clk 0:02:04.3]} 15... Bh6 {[%clk 0:01:15.4]} 16. a3 {[%clk 0:01:42.7]} 16...
Kb8 {[%clk 0:00:58.7]} 17. b4 {[%clk 0:01:40.9]} 17... Qb5 {[%clk 0:00:59.2]}
18. Qxb5 {[%clk 0:01:22]} 18... axb5 {[%clk 0:01:00.1]} 19. f6 {[%clk
0:01:14.7]} 19... Rc8 {[%clk 0:00:51.6]} 20. Ra2 {[%clk 0:01:12.6]} 20... Rhg8
{[%clk 0:00:51]} 21. h3 {[%clk 0:01:07.4]} 21... Rg6 {[%clk 0:00:46.1]} 22. Nh4
{[%clk 0:01:03.9]} 22... Rxf6 {[%clk 0:00:44.4]} 23. g4 {[%clk 0:01:03.3]} 23...
Rg8 {[%clk 0:00:21.1]} 24. Kh1 {[%clk 0:00:56.3]} 24... Rf4 {[%clk 0:00:16.4]}
25. Nf5 {[%clk 0:00:51.7]} 25... Bf8 {[%clk 0:00:16.8]} 26. Rc2 {[%clk
0:00:44.4]} 26... h5 {[%clk 0:00:17.1]} 27. f3 {[%clk 0:00:40.2]} 27... hxg4
{[%clk 0:00:17.2]} 28. hxg4 {[%clk 0:00:33.2]} 28... Rgxg4 {[%clk 0:00:17.1]}
29. Ne3 {[%clk 0:00:28.7]} 29... Rh4+ {[%clk 0:00:16.8]} 30. Rh2 {[%clk
0:00:26.6]} 30... Rxh2+ {[%clk 0:00:16.3]} 31. Kxh2 {[%clk 0:00:27]} 31... Rd4
{[%clk 0:00:16.2]} 32. Nf5 {[%clk 0:00:24.7]} 32... Rxd5 {[%clk 0:00:15.7]} 33.
Rg1 {[%clk 0:00:24.3]} 33... Kc7 {[%clk 0:00:16]} 34. Rg8 {[%clk 0:00:24]} 34...
Rd3 {[%clk 0:00:16.9]} 35. Rxf8 {[%clk 0:00:23.6]} 35... Rxf3 {[%clk 0:00:17.8]}
36. Rxf7+ {[%clk 0:00:23.6]} 36... Kc6 {[%clk 0:00:18.5]} 37. Ne7+ {[%clk
0:00:22.3]} 1-0

[Event "*** Titled Tuesday Blitz"]
[Site "Chess.com"]
[Date "2020.05.05"]
[Round "8"]
[White "Aygehovit1992"]
[Black "vladislavkovalev"]
[Result "0-1"]
[WhiteElo "2701"]
[BlackElo "2894"]
[TimeControl "180+1"]
[EndTime "11:35:37 PDT"]
[Termination "vladislavkovalev won by checkmate"]

1. e4 {[%clk 0:02:59.4]} 1... e5 {[%clk 0:03:00.1]} 2. Nf3 {[%clk 0:02:58.2]}
2... Nc6 {[%clk 0:03:00.6]} 3. Bb5 {[%clk 0:02:57.8]} 3... a6 {[%clk 0:03:00.9]}
4. Ba4 {[%clk 0:02:57.8]} 4... Nf6 {[%clk 0:03:01.5]} 5. d3 {[%clk 0:02:58.2]}
5... b5 {[%clk 0:03:01.6]} 6. Bb3 {[%clk 0:02:58]} 6... Bc5 {[%clk 0:03:02.4]}
7. c3 {[%clk 0:02:57.6]} 7... d6 {[%clk 0:03:02.7]} 8. Bg5 {[%clk 0:02:57.6]}
8... h6 {[%clk 0:03:03.1]} 9. Bh4 {[%clk 0:02:56.5]} 9... Rb8 {[%clk 0:03:03.2]}
10. Nbd2 {[%clk 0:02:56]} 10... Bb6 {[%clk 0:02:59.2]} 11. Nf1 {[%clk
0:02:50.1]} 11... g5 {[%clk 0:02:27.9]} 12. Bg3 {[%clk 0:02:49.3]} 12... Be6
{[%clk 0:02:28.5]} 13. Ne3 {[%clk 0:02:48.4]} 13... O-O {[%clk 0:02:23.3]} 14.
h4 {[%clk 0:02:20.9]} 14... g4 {[%clk 0:02:18.3]} 15. Nh2 {[%clk 0:02:20.3]}
15... h5 {[%clk 0:01:57.7]} 16. Nd5 {[%clk 0:02:14.2]} 16... Bxd5 {[%clk
0:01:54.6]} 17. exd5 {[%clk 0:02:13.1]} 17... Ne7 {[%clk 0:01:55.1]} 18. f3
{[%clk 0:02:12.8]} 18... Nf5 {[%clk 0:01:52.6]} 19. Nf1 {[%clk 0:02:09.1]} 19...
Kh8 {[%clk 0:01:27.5]} 20. Qd2 {[%clk 0:01:55.1]} 20... Rg8 {[%clk 0:01:25.7]}
21. Bf2 {[%clk 0:01:12.8]} 21... gxf3 {[%clk 0:01:25.6]} 22. Bxb6 {[%clk
0:01:05]} 22... fxg2 {[%clk 0:01:21.5]} 23. Rg1 {[%clk 0:01:04.7]} 23... cxb6
{[%clk 0:01:01.8]} 24. Ne3 {[%clk 0:00:59.5]} 24... Nxh4 {[%clk 0:01:02.1]} 25.
Bd1 {[%clk 0:00:29.1]} 25... Nh7 {[%clk 0:00:54.1]} 26. Bxh5 {[%clk 0:00:22.9]}
26... Qg5 {[%clk 0:00:51.6]} 27. Be2 {[%clk 0:00:20.8]} 27... Qg3+ {[%clk
0:00:32.6]} 28. Kd1 {[%clk 0:00:20.8]} 28... f5 {[%clk 0:00:21.8]} 29. Kc2
{[%clk 0:00:20.9]} 29... f4 {[%clk 0:00:21.2]} 30. Nd1 {[%clk 0:00:10]} 30... f3
{[%clk 0:00:20]} 31. Kb3 {[%clk 0:00:04.4]} 31... Rbf8 {[%clk 0:00:18]} 32. Ne3
{[%clk 0:00:03]} 32... fxe2 {[%clk 0:00:16.4]} 33. Qxe2 {[%clk 0:00:03.9]} 33...
Rf2 {[%clk 0:00:16.4]} 34. Qh5 {[%clk 0:00:03.8]} 34... Qxe3 {[%clk 0:00:14.7]}
35. Qxh4 {[%clk 0:00:04.1]} 35... Qf4 {[%clk 0:00:13.3]} 36. Qh3 {[%clk
0:00:02.5]} 36... Qa4# {[%clk 0:00:13.2]} 0-1

[Event "*** Titled Tuesday Blitz"]
[Site "Chess.com"]
[Date "2020.05.05"]
[Round "8"]
[White "pedromartinez91"]
[Black "wanyaland"]
[Result "1-0"]
[WhiteElo "2532"]
[BlackElo "2326"]
[TimeControl "180+1"]
[EndTime "11:35:37 PDT"]
[Termination "pedromartinez91 won by resignation"]

1. e4 {[%clk 0:03:00.9]} 1... e5 {[%clk 0:02:57.5]} 2. Nf3 {[%clk 0:03:00.4]}
2... Nc6 {[%clk 0:02:54]} 3. Bb5 {[%clk 0:03:00.4]} 3... a6 {[%clk 0:02:50.3]}
4. Ba4 {[%clk 0:03:00.9]} 4... Nf6 {[%clk 0:02:48.2]} 5. O-O {[%clk 0:03:00.6]}
5... b5 {[%clk 0:02:48.1]} 6. Bb3 {[%clk 0:03:00.8]} 6... Bc5 {[%clk 0:02:35.3]}
7. d3 {[%clk 0:02:56.5]} 7... d6 {[%clk 0:02:34.2]} 8. c3 {[%clk 0:02:51.9]}
8... Bb6 {[%clk 0:02:28.5]} 9. a4 {[%clk 0:02:52.1]} 9... Rb8 {[%clk 0:02:27.6]}
10. axb5 {[%clk 0:02:52.3]} 10... axb5 {[%clk 0:02:28.1]} 11. Na3 {[%clk
0:02:53]} 11... b4 {[%clk 0:02:25.9]} 12. Nc4 {[%clk 0:02:52.5]} 12... bxc3
{[%clk 0:02:17.6]} 13. bxc3 {[%clk 0:02:52.8]} 13... O-O {[%clk 0:02:16.4]} 14.
Nxb6 {[%clk 0:02:53.2]} 14... Rxb6 {[%clk 0:02:15.1]} 15. Be3 {[%clk 0:02:53.5]}
15... Rb8 {[%clk 0:02:15.4]} 16. h3 {[%clk 0:02:53.9]} 16... h6 {[%clk
0:02:14.9]} 17. Ba4 {[%clk 0:02:49.6]} 17... Ne7 {[%clk 0:02:14.4]} 18. Qc2
{[%clk 0:02:48]} 18... Ng6 {[%clk 0:02:10.8]} 19. d4 {[%clk 0:02:48.2]} 19...
Nh5 {[%clk 0:02:07.9]} 20. Rfd1 {[%clk 0:02:44.4]} 20... Qf6 {[%clk 0:02:06.2]}
21. dxe5 {[%clk 0:02:31]} 21... dxe5 {[%clk 0:02:07.1]} 22. Ne1 {[%clk
0:02:16.1]} 22... Be6 {[%clk 0:01:58.8]} 23. Bc5 {[%clk 0:02:11.8]} 23... Rfd8
{[%clk 0:01:57.1]} 24. Rxd8+ {[%clk 0:02:11.7]} 24... Rxd8 {[%clk 0:01:57.4]}
25. Rd1 {[%clk 0:02:12.4]} 25... Rxd1 {[%clk 0:01:53.5]} 26. Qxd1 {[%clk
0:02:13.3]} 26... Nhf4 {[%clk 0:01:53.6]} 27. Bb3 {[%clk 0:02:01.7]} 27... Bxb3
{[%clk 0:01:41.9]} 28. Qxb3 {[%clk 0:02:02.6]} 28... Qc6 {[%clk 0:01:41.6]} 29.
Qb4 {[%clk 0:01:53.6]} 29... Qa6 {[%clk 0:01:31.1]} 30. Be3 {[%clk 0:01:42.1]}
30... Qa1 {[%clk 0:01:27.4]} 31. Kf1 {[%clk 0:01:28.3]} 31... Qd1 {[%clk
0:01:21.2]} 32. c4 {[%clk 0:01:20.7]} 32... Qe2+ {[%clk 0:01:04.9]} 33. Kg1
{[%clk 0:01:18.6]} 33... Nh4 {[%clk 0:01:04.4]} 34. Bxf4 {[%clk 0:01:00.6]}
34... exf4 {[%clk 0:01:03.8]} 35. f3 {[%clk 0:00:53.5]} 35... Ng6 {[%clk
0:00:52.3]} 36. Qc3 {[%clk 0:00:50.3]} 36... Qd1 {[%clk 0:00:47.5]} 37. Kf2
{[%clk 0:00:45.7]} 37... c5 {[%clk 0:00:47.5]} 38. Nd3 {[%clk 0:00:43.8]} 38...
Qh1 {[%clk 0:00:34.7]} 39. Qd2 {[%clk 0:00:33.7]} 39... Qh2 {[%clk 0:00:33.2]}
40. Kf1 {[%clk 0:00:30.4]} 40... Qh1+ {[%clk 0:00:28.5]} 41. Kf2 {[%clk
0:00:29.6]} 41... Qh2 {[%clk 0:00:29]} 42. Nxc5 {[%clk 0:00:23.6]} 42... Nh4
{[%clk 0:00:26.9]} 43. Qd8+ {[%clk 0:00:23.3]} 1-0

[Event "*** Titled Tuesday Blitz"]
[Site "Chess.com"]
[Date "2020.05.05"]
[Round "8"]
[White "THE_PLAYER6"]
[Black "aNaartjieZA"]
[Result "0-1"]
[WhiteElo "2421"]
[BlackElo "2587"]
[TimeControl "180+1"]
[EndTime "11:35:37 PDT"]
[Termination "aNaartjieZA won by resignation"]

1. d4 {[%clk 0:03:00]} 1... Nf6 {[%clk 0:02:59.9]} 2. c4 {[%clk 0:02:58.7]} 2...
c5 {[%clk 0:03:00.1]} 3. d5 {[%clk 0:02:57.5]} 3... e5 {[%clk 0:03:00.3]} 4. Nc3
{[%clk 0:02:52.8]} 4... d6 {[%clk 0:03:00.4]} 5. e4 {[%clk 0:02:53.1]} 5... Be7
{[%clk 0:03:00.4]} 6. Be2 {[%clk 0:02:53.6]} 6... Nbd7 {[%clk 0:03:01]} 7. g4
{[%clk 0:02:53.3]} 7... Nf8 {[%clk 0:02:59.1]} 8. g5 {[%clk 0:02:51.9]} 8...
N6d7 {[%clk 0:02:58.3]} 9. h4 {[%clk 0:02:52.4]} 9... h6 {[%clk 0:02:54.6]} 10.
gxh6 {[%clk 0:02:47.8]} 10... gxh6 {[%clk 0:02:54.4]} 11. Nf3 {[%clk 0:02:47.9]}
11... Bf6 {[%clk 0:02:49.3]} 12. Be3 {[%clk 0:02:43.8]} 12... a6 {[%clk
0:02:48.1]} 13. Qd2 {[%clk 0:02:43.2]} 13... h5 {[%clk 0:02:47.8]} 14. Ng5
{[%clk 0:02:41.8]} 14... Ng6 {[%clk 0:02:45.2]} 15. O-O-O {[%clk 0:02:38.5]}
15... Rb8 {[%clk 0:02:43.5]} 16. a4 {[%clk 0:02:36.9]} 16... Qa5 {[%clk
0:02:33.3]} 17. Rdg1 {[%clk 0:02:30.4]} 17... Ke7 {[%clk 0:02:18.3]} 18. Ne6
{[%clk 0:01:56.4]} 18... Ndf8 {[%clk 0:01:56.4]} 19. Nxf8 {[%clk 0:01:43.4]}
19... Kxf8 {[%clk 0:01:55.7]} 20. Bg5 {[%clk 0:01:43.1]} 20... Bg7 {[%clk
0:01:55.6]} 21. Bd1 {[%clk 0:01:35.7]} 21... Bd7 {[%clk 0:01:52.1]} 22. Rg3
{[%clk 0:01:18.9]} 22... b5 {[%clk 0:01:42.5]} 23. cxb5 {[%clk 0:01:16.8]} 23...
axb5 {[%clk 0:01:42.2]} 24. Nxb5 {[%clk 0:01:17.3]} 24... Qxd2+ {[%clk
0:01:39.2]} 25. Bxd2 {[%clk 0:01:18.2]} 25... Bxb5 {[%clk 0:01:38.3]} 26. axb5
{[%clk 0:01:19.1]} 26... Rxb5 {[%clk 0:01:37.6]} 27. Rhg1 {[%clk 0:01:17]} 27...
Bf6 {[%clk 0:01:34.4]} 28. Bg5 {[%clk 0:01:06.6]} 28... Ke7 {[%clk 0:01:31.7]}
29. Rf3 {[%clk 0:00:59.4]} 29... Bxg5+ {[%clk 0:01:31.2]} 30. Rxg5 {[%clk
0:01:00.3]} 30... Nf4 {[%clk 0:01:27.7]} 31. Rf5 {[%clk 0:00:56.3]} 31... Rb4
{[%clk 0:01:23.2]} 32. R3xf4 {[%clk 0:00:51.1]} 32... exf4 {[%clk 0:01:22]} 33.
Rxf4 {[%clk 0:00:52]} 33... Rhb8 {[%clk 0:01:12.7]} 34. Bxh5 {[%clk 0:00:37]}
34... f6 {[%clk 0:01:09.4]} 35. Rg4 {[%clk 0:00:30.6]} 35... Rxb2 {[%clk
0:01:08.5]} 36. Rg7+ {[%clk 0:00:30.1]} 36... Kf8 {[%clk 0:01:06.6]} 37. Rf7+
{[%clk 0:00:30.4]} 37... Kg8 {[%clk 0:01:06.6]} 38. Rxf6 {[%clk 0:00:31]} 38...
Rb1+ {[%clk 0:01:05]} 39. Kd2 {[%clk 0:00:31.4]} 39... R8b2+ {[%clk 0:01:00.3]}
40. Ke3 {[%clk 0:00:31.6]} 40... c4 {[%clk 0:00:54.9]} 41. Kd4 {[%clk
0:00:21.2]} 41... Rc1 {[%clk 0:00:53.5]} 42. e5 {[%clk 0:00:15.3]} 42... Rd2+
{[%clk 0:00:52.9]} 43. Ke3 {[%clk 0:00:15.1]} 43... c3 {[%clk 0:00:44.7]} 44. e6
{[%clk 0:00:13.5]} 44... Re1+ {[%clk 0:00:44.9]} 45. Kf3 {[%clk 0:00:13.2]}
45... c2 {[%clk 0:00:44.7]} 46. Rg6+ {[%clk 0:00:09.2]} 46... Kh7 {[%clk
0:00:43]} 0-1